Cogmind - Beta 14 *** ADVENTURER MODE // 2024.09.01 @ 19:45:22 Player: Kurgan Result: Destroyed by G-47 Trooper with Particle Gun Performance ------------- Evolutions (1) 500 Regions Visited (3) 600 Robots Destroyed (41) 205 Value Destroyed (1183) 1183 Prototype IDs (0) 0 Alien Tech Used (0) 0 Bonus (0) 0 TOTAL SCORE: 2488 Bonus ------- None Cogmind --------- Core Integrity 0/400 Matter 327/400 Energy 8/100 System Corruption 3% Temperature Cool (6) Movement Walking (680) Ox8 Location -9/Mines Parts ------- > --- POWER (2) -------- (None) > --- PROPULSION (2) --- Aluminum Leg > --- UTILITY (3) ------ Huge Storage Unit Medium Matter Pod Shield Generator > --- WEAPON (2) ------- (None) > --- INVENTORY (25) --- Heat Sink Disposable Heat Sink Signal Interpreter Terrain Scan Processor Hardened Light Armor Plating Tractor Beam Tractor Beam Datajack Datajack Datajack Mining Laser Mining Claw Peak State ------------ > --- POWER ------------ Ion Engine Improved Ion Engine > --- PROPULSION ------- Light Treads Light Treads > --- UTILITY ---------- Huge Storage Unit Visual Processing Unit Medium Armor Plating > --- WEAPON ----------- Beam Rifle EMP Blaster > --- INVENTORY -------- Ion Engine Ion Engine Heat Sink Sensor Array Signal Interpreter Light Armor Plating Particle Gun Datajack Datajack Datajack Datajack Mining Laser Mining Claw [Rating: 15] Favorites ----------- Power Light Ion Engine Engine Light Ion Engine Propulsion Aluminum Leg Treads Light Treads Leg Aluminum Leg Wheel Wheel Flight Unit Flight Unit Utility Huge Storage Unit Device Cooling System Storage Huge Storage Unit Processor Signal Interpreter Protection Light Armor Plating Weapon Heavy EM Pulse Gun Energy Gun Heavy EM Pulse Gun Ballistic Gun Light Assault Rifle Launcher EMP Blaster Slashing Weapon Mining Claw Special Melee Weapon Datajack Build | -11 -10 -9 -9 ------- Run | Yrd Mat Mat Min Slots Evolved 2 | . . 2 . Power 1 | . . 1 . Propulsion . | . . . . Utility 1 | . . 1 . Weapon . | . . . . Parts Attached 71 | 5 20 43 3 Power 15 | 2 2 11 . Engine 15 | 2 2 11 . Core . | . . . . Reactor . | . . . . Propulsion 23 | 2 8 11 2 Treads 4 | . . 4 . Leg 9 | 2 1 4 2 Wheel 7 | . 7 . . Hover . | . . . . Flight 3 | . . 3 . Utility 12 | . 4 7 1 Device 6 | . 2 3 1 Storage 2 | . 1 1 . Processor 2 | . 1 1 . Hackware . | . . . . Protection 2 | . . 2 . Artifact . | . . . . Weapon 21 | 1 6 14 . Energy Gun 12 | . 2 10 . Energy Cannon . | . . . . Ballistic Gun 3 | 1 2 . . Ballistic Cannon . | . . . . Launcher 4 | . 2 2 . Special Weapon . | . . . . Impact Weapon . | . . . . Slashing Weapon 1 | . . 1 . Piercing Weapon . | . . . . Special Melee Weapon 1 | . . 1 . Unidentified Prototypes . | . . . . Parts Lost 17 | . 1 8 8 Power 4 | . 1 1 2 Propulsion 4 | . . 1 3 Utility 2 | . . 1 1 Weapon 7 | . . 5 2 Highest Loss Streak 7 | . 1 2 7 To Critical Strikes . | . . . . Average Slot Usage (%) 92 | . 86 94 94 Engine 19 | . 12 20 19 Treads 5 | . . 7 . Leg 9 | . 12 8 2 Wheel 2 | . 12 . . Flight 3 | . . 3 19 Device 10 | . 1 12 11 Storage 14 | . 13 14 22 Processor 3 | . 11 2 . Protection 2 | . . 3 . Energy Gun 15 | . 10 16 19 Ballistic Gun 1 | . 6 . . Launcher 2 | . 4 2 . Peak Build Rating 15 | 4 8 15 13 Average Rating 11 | 2 6 12 12 On Entrance 6 | . 4 8 13 Naked Turns . | . . . . Heaviest Build 106 | 4 89 106 96 Greatest Support 40 | 20 26 40 20 Greatest Overweight (x) 26 | . 26 23 23 Average Overweight (x) 3 | . 3 3 9 Largest Inventory Capacity 25 | 5 25 25 25 Average Capacity 24 | 5 24 25 25 Most Carried 23 | 2 10 23 15 Average Carried 12 | . 6 14 14 Final Capacity 25 | 5 25 25 25 Final Carried 15 | . 6 15 12 Class Distribution -------------------- 69% | Mutant 30% | Scavenger-Mutant Dominant Class ---------------- Mutant | -10/Materials Mutant | -9/Materials Mutant | -9/Mines Resources | -11 -10 -9 -9 ----------- Run | Yrd Mat Mat Min Matter Collected 1116 | 254 127 735 . Remotely . | . . . . Salvage Created 1314 | 31 195 1088 . Parts 87 | 1 14 72 . Haulers Intercepted . | . . . . Recyclers Shooed . | . . . . Parts Field Recycled . | . . . . Retrieved Matter . | . . . . Parts Self-Destructed . | . . . . Prevented . | . . . . Kills | -11 -10 -9 -9 ------- Run | Yrd Mat Mat Min Combat Hostiles Destroyed 36 | 1 7 28 . Guns 25 | 1 4 20 . AOE 8 | . 3 5 . Classes Destroyed 5 | 1 3 1 . Worker 1 | . 1 . . Watcher 4 | . 1 3 . Swarmer 12 | . 3 9 . Grunt 14 | 1 4 9 . Sentry 10 | . . 10 . Best Kill Streak 4 | 1 4 3 . Combat Bots Only 3 | 1 3 3 . Max Kills in Single Turn 3 | 1 3 2 . Gunslinging . | . . . . Exploded 2 | . 2 2 . Melee . | . . . . Uniques/NPCs Destroyed . | . . . . Combat | -11 -10 -9 -9 -------- Run | Yrd Mat Mat Min Hostile Shots Fired 366 | 4 54 221 87 Missed 102 | 3 14 58 27 Damage Taken 2509 | 8 332 1615 554 Core 500 | . 95 243 162 Absorbed by Shields 42 | . . . 42 Ignored by Resistances 766 | 2 106 482 176 Core Remaining (%) 81 | 100 62 . . Volleys Fired 126 | 4 21 101 . Largest 2 | 1 2 2 . Hottest 121 | 20 65 121 . Shots Fired 172 | 4 23 144 1 Gun 161 | 4 20 136 1 Cannon . | . . . . Launcher 11 | . 3 8 . Special . | . . . . Kinetic 19 | 4 9 6 . Thermal 82 | . 11 71 . Explosive 3 | . 3 . . Electromagnetic 68 | . . 67 1 Robot Hit Streak 36 | 4 7 36 5 Robot Miss Streak 2 | . 1 2 . Penetration Max . | . . . . Secondary Targets . | . . . . Shots Hit Robots 139 | 4 16 118 1 Core Hits 63 | 2 14 47 . Critical Kills . | . . . . Critical Parts Destroyed 1 | . . 1 . Critical Strikes 10 | . 1 9 . Burn 8 | . 1 7 . Destroy 1 | . . 1 . Corrupt 1 | . . 1 . Melee Attacks 3 | . . 3 . Impact . | . . . . Slashing . | . . . . Piercing . | . . . . Sneak Attacks 1 | . . 1 . Combat Hostiles . | . . . . Follow-up Attacks . | . . . . Damage Inflicted 2367 | 37 442 1873 15 Guns 1722 | 37 163 1507 15 Cannons . | . . . . Explosions 620 | . 262 358 . Melee . | . . . . Ramming 25 | . 17 8 . Kinetic 128 | 37 71 20 . Thermal 1196 | . 92 1104 . Explosive 262 | . 262 . . Electromagnetic 756 | . . 741 15 Impact . | . . . . Slashing . | . . . . Piercing . | . . . . Highest Corruption 3 | . . 3 3 Average Corruption 2 | . . 2 3 Corruption Purged . | . . . . Corruption Blocked . | . . . . Effects 116 | . . 108 8 Message Errors 32 | . . 29 3 Matter Fused 27 | . . 27 . Heat Flow Errors 11 | . . 10 1 Energy Discharges 15 | . . 14 1 Parts Rejected 1 | . . 1 . Parts Fused 1 | . . 1 . Data Loss (minor) 14 | . . 13 1 Data Loss (major) 3 | . . 3 . Misfires 9 | . . 8 1 Alerts 2 | . . 1 1 Weapon Failures 1 | . . 1 . Overload Shots . | . . . . Overflow Damage 15 | . 6 9 . Projectiles . | . . . . Explosions 15 | . 6 9 . Melee . | . . . . Knockbacks . | . . . . Impact . | . . . . Kinetic . | . . . . Secondary . | . . . . Self-Inflicted Damage 122 | . 18 104 . Shots 8 | . 1 7 . Rammed 1 | . 1 . . Targets Rammed 5 | . 2 3 . Kicked 4 | . 1 3 . Crushed . | . . . . Highest Temperature 455 | 6 48 455 69 Average Temperature 112 | 6 18 123 50 Received Heat Transfer 1293 | 6 150 738 399 Effects 8 | . . 8 . Shutdowns 2 | . . 2 . Energy Bleed 1 | . . 1 . Damage (minor) 1 | . . 1 . Damage (major) 4 | . . 4 . Siege Activations . | . . . . Robots Corrupted 2 | . . 2 . Combat Hostiles 2 | . . 2 . Parts Fried 5 | . . 5 . Impact Corruptions . | . . . . Robots Melted 1 | . . 1 . Combat Hostiles 1 | . . 1 . Parts Melted 8 | . . 8 . Heat Transferred 3322 | . 296 3026 . Parts Sabotaged . | . . . . Parts Stolen . | . . . . Parts Stripped . | . . . . Power Chain Reactions 4 | . . 4 . Alert | -11 -10 -9 -9 ------- Run | Yrd Mat Mat Min Peak Influence 286 | 20 132 286 9 Initial 11 | . 11 5 9 Average 34 | 6 33 38 6 Maximum Alert Level 1 | . . 1 . Low Security (%) 99 | 100 100 98 100 Level 1 . | . . 1 . Level 2 . | . . . . Level 3 . | . . . . Level 4 . | . . . . Level 5 . | . . . . High Security . | . . . . Max Security . | . . . . Squads Dispatched 6 | . . 6 . Investigation 3 | . . 3 . Extermination . | . . . . Reinforcement 3 | . . 3 . Assault . | . . . . Garrison . | . . . . Intercept . | . . . . Searches Triggered . | . . . . Construction Impeded . | . . . . Haulers Reinforced . | . . . . Active Scanning Responses . | . . . . Cargo Convoy Interrupts . | . . . . Stealth | -11 -10 -9 -9 --------- Run | Yrd Mat Mat Min Distress Signals 5 | . 1 4 . Communications Jammed . | . . . . Distress Signals . | . . . . Times Spotted 76 | 1 20 52 3 Peak Tracking Total 5 | 1 5 5 3 Tactical Retreats 6 | . . 6 . Traps | -11 -10 -9 -9 ------- Run | Yrd Mat Mat Min Traps Triggered 6 | . 5 1 . Indirectly . | . . . . Trap Hack Attempts . | . . . . Triggered . | . . . . Disarmed . | . . . . Reprogrammed . | . . . . Reused . | . . . . Traps Extracted . | . . . . Installed . | . . . . Triggered . | . . . . Machines | -11 -10 -9 -9 ---------- Run | Yrd Mat Mat Min Machines Disabled 2 | . . 2 . Max in Single Turn 1 | . . 1 . Machines Repaired . | . . . . Machines Dismantled . | . . . . Machines Sabotaged . | . . . . Overloaded Fab Kills . | . . . . Hacking | -11 -10 -9 -9 --------- Run | Yrd Mat Mat Min Machines Accessed 7 | . 3 4 . Terminals 5 | . 2 3 . Fabricators . | . . . . Repair Stations 1 | . . 1 . Recycling Units 1 | . 1 . . Scanalyzers . | . . . . Garrison Access . | . . . . Total Hacks 12 | . 7 5 . Successful 9 | . 6 3 . Failed 3 | . 1 2 . Catastrophic . | . . . . Database Lockouts . | . . . . Manual . | . . . . Terminals 9 | . 5 4 . Fabricators . | . . . . Repair Stations 1 | . . 1 . Recycling Units 2 | . 2 . . Scanalyzers . | . . . . Garrison Access . | . . . . Terminal Hacks 6 | . 4 2 . Alert Level 5 | . 4 1 . Recall Reinforcements 1 | . . 1 . Fabricator Hacks . | . . . . Repair Station Hacks 1 | . . 1 . Scan Component 1 | . . 1 . Recycling Unit Hacks 2 | . 2 . . Report Inventory 2 | . 2 . . Scanalyzer . | . . . . Garrison Access Hacks . | . . . . Unauthorized Hacks . | . . . . Terminals . | . . . . Fabricators . | . . . . Repair Stations . | . . . . Recycling Units . | . . . . Scanalyzers . | . . . . Garrison Access . | . . . . Data Cores Recovered . | . . . . Used . | . . . . Hacking Detections 4 | . 2 2 . Full Trace Events 1 | . 1 . . Feedback Events . | . . . . Feedback Blocked . | . . . . Robot Schematics Acquired . | . . . . Robots Built . | . . . . Authchips . | . . . . Time . | . . . . Total Robot Build Rating . | . . . . Part Schematics Acquired . | . . . . Parts Built . | . . . . Authchips . | . . . . Time . | . . . . Total Part Build Rating . | . . . . Parts Repaired . | . . . . Time . | . . . . Parts Recycled . | . . . . Recycled Matter . | . . . . Retrieved Matter . | . . . . Retrieved Components . | . . . . Parts Scanalyzed . | . . . . Part Schematics Acquired . | . . . . Parts Damaged . | . . . . Bothacking | -11 -10 -9 -9 ------------ Run | Yrd Mat Mat Min Used RIF Installer . | . . . . Robots Hacked 1 | . . 1 . Non-combat 1 | . . 1 . Combat . | . . . . Robot Hacks Applied 1 | . . 1 . parse_system 1 | . . 1 . Relay Couplers Released . | . . . . Fabnet Peak Effective % . | . . . . Robots Rewired . | . . . . Allies Hacked . | . . . . Hacks Repelled . | . . . . Allies | -11 -10 -9 -9 -------- Run | Yrd Mat Mat Min Total Allies . | . . . . Largest Group . | . . . . Highest-Rated Group . | . . . . Highest-Rated Ally . | . . . . Total Orders . | . . . . Ally Attacks . | . . . . Total Damage . | . . . . Kills . | . . . . Allies Corrupted . | . . . . Allies Melted . | . . . . Intel | -11 -10 -9 -9 ------- Run | Yrd Mat Mat Min Robot Analysis Total . | . . . . Derelict Logs Recovered . | . . . . Drone Launches . | . . . . Drone Recoveries . | . . . . Exploration | -11 -10 -9 -9 ------------- Run | Yrd Mat Mat Min Turns Passed 9478 | 219 1739 6965 555 Spaces Moved 2585 | 172 754 1593 66 Core 70 | 67 3 . . Treads 713 | . . 713 . Legs 954 | 105 220 616 13 Wheels 677 | . 531 146 . Hover . | . . . . Flight 171 | . . 118 53 Fastest Speed 50 | 50 120 135 400 Average Speed 338 | 92 207 406 834 Slowest Speed 1890 | 120 1350 1890 1880 Overloaded Moves . | . . . . Propulsion Burnouts . | . . . . Robots Hopped . | . . . . Cave-ins Triggered . | . . . . Exploration Rate (%) 38 | 6 71 63 15 Regions Visited 3 Branch Regions 1 Pre-discovered Areas . | . . . . Known Exits Taken . | . . . . Unknown Exits Taken 3 | 1 1 1 . Scrap Searched . | . . . . Spaces Dug . | . . . . Terrain Destroyed 39 | . 26 13 . Melee . | . . . . Projectile . | . . . . AOE 39 | . 26 13 . Terrain Rammed . | . . . . Walls Destroyed . | . . . . Machines Disabled . | . . . . Actions | -11 -10 -9 -9 --------- Run | Yrd Mat Mat Min Total 3142 | 229 905 1937 71 Wait 248 | 44 82 120 2 Move 2582 | 171 753 1592 66 Hop . | . . . . Pick Up 75 | 4 23 48 . Fast Attach 2 | . 2 . . Attach 36 | 5 13 15 3 Detach 1 | 1 . . . Swap 33 | . 5 28 . Drop 31 | . 4 27 . Fire 126 | 4 21 101 . Melee 3 | . . 3 . Ram 1 | . 1 . . Kick 4 | . 1 3 . Crush . | . . . . Escape Stasis . | . . . . Rewire . | . . . . Trap . | . . . . Miscellaneous . | . . . . Route ------- -11/Scrapyard -10/Materials (discovered 4 exits: *Mat x2 / [*Min x2]) -9/Materials (discovered 4 exits: [*Mat] / [*Min x2] / [*Sto]) -9/Mines (discovered 1 exit: [*Zio]) History --------- Turn | Location | Event 2 | -11/Scrapyard | Met Revision 17 138 | -11/Scrapyard | Discovered new exit (range 8) 220 | -11/Scrapyard | Entered Materials 317 | -10/Materials | Build established: Mutant 974 | -10/Materials | Discovered new exit (range 11) 1512 | -10/Materials | Discovered new exit (range 3) 1864 | -10/Materials | Discovered new exit (range 16) 1875 | -10/Materials | Discovered new exit (range 16) 1959 | -10/Materials | Entered another Materials area 1959 | -9/Materials | Evolved 2 slots: Power x1, Utility x1 2020 | -9/Materials | Discovered new exit (range 9) 2484 | -9/Materials | Build established: Scavenger-Mutant 2834 | -9/Materials | Discovered new exit (range 7) 4773 | -9/Materials | Discovered new exit (range 9) 5384 | -9/Materials | Build established: Mutant 7187 | -9/Materials | Core integrity fell below 50% 8050 | -9/Materials | Discovered new exit (range 13) 8924 | -9/Materials | Entered Mines 8925 | -9/Mines | A Derelict revealed a hidden shortcut to a safe place 9423 | -9/Mines | Core integrity fell below 20% 9453 | -9/Mines | Lost 7 parts (2p2n1u2w) 9479 | -9/Mines | Destroyed by G-47 Trooper with Particle Gun Last Messages --------------- Lgt. Ion Engine destroyed. Hvy. EM Pulse Gun destroyed. Lgt. Ion Engine destroyed. Flight Unit destroyed. Hvy. EM Pulse Gun destroyed. Cooling System destroyed. T-07 Excavator destroyed. K-01 Serf collects debris. R-06 Scavenger collects Mining Laser. K-01 Serf collects debris. R-06 Scavenger collects Wheel. K-01 Serf collects debris. R-06 Scavenger collects Lgt. Ion Engine. K-01 Serf collects debris. G-34 Mercenary destroyed. R-06 Scavenger collects Heat Sink. K-01 Serf collects debris. System corrupted: Energy discharge (-14). Aluminum Leg destroyed. [Achievement: First Step to Greatness] Map ----- +----------------------------------------------------+ | ????????????????????????????????????????????????? | | ????????????????????????????????????????????????? | | ????????????????????????????????????????????????? | | ????????????????????????????????????????????????? | | ????????????????????????????????????????????????? | | ????????????????????????????????????????????????? | | ????????????????????????????????????????????????? | | ??? ???????????????????????????????????????????? | | ??# ??????????????????????????????????????????? | | ???# ?????????????????### #???????????????????? | | ???# ?????????####?? ???????????????????? | | ??## #???????## ## ?????????????????????? | | # ###????# #???????????????????????? | | % #??## ?????????????????????????? | | ### #????????????????????????????? | | ???# =%* ##???????????????????????????? | | ????# ## [ ##??????????????????????????? | | ????????## ##?????????????????????????? | | ?????????## ######????????????????????? | | ??????????# #????????????????????? | | ??????????## g#????????????????????? | | ???????????# #######g#????????????????????? | | ???????????# ####?????# ##???????????????????? | | ???????????# ##??????### ##??????????????????? | | ????????? #??????## ##?????????????????? | | ??????? #??????# @> ###???????????????? | | ?????? ##??????# #???????????? | | ?????# #???????##++## ###???????????? | | ?????## #????????# ## ##?????????????? | | ??????# #?????????# #?######??????????????? | | ??????# ?????????## #?????????????????????? | | ??????## #?????????# #?????????????????????? | | ????????????????????## #?????????????????????? | | ?????????????????????######?????????????????????? | | ????????????????????????????????????????????????? | | ????????????????????????????????????????????????? | | ????????????????????????????????????????????????? | | | | | | | | | | | | | | | | | | | | | | | | | | | +----------------------------------------------------+ Best States ------------- Heat Dissipation 50 Energy Generation 17 Energy Capacity 415 Matter Stores 400 Matter Capacity 400 Sight Range 18 Robot Scan Range 14 Terrain Scan Range 14 Terrain Scan Density 10 Armor Coverage 225 Resistance: KI 20 Resistance: TH 20 Resistance: EX 20 Resistance: EM 20 Resistance: I 20 Resistance: S 20 Resistance: P 20 Evasion (%) 55 Recoil Reduction 2 Offensive Hacking 10 Item Schematics ----------------- None Robot Schematics ------------------ None Fabricated ------------ Nothing Alien Tech Used ----------------- None Achievements -------------- Crack Shot First Step to Greatness GoHome() It's Just You Power Corrupts Uninvited Guest Challenges ------------ None Game ------ Seed EfficiencyStormRipteeth Manual? 0 Play Time 01:03:35 Cumulative 1.0 hours Start 2024.09.01 @ 16:05:56 End 2024.09.01 @ 19:45:22 Sessions 4 Manual Loads 0 Difficulty Adventurer Special Mode None Game No. 1 Rogue 0 Adventurer 1 Explorer 0 Win Type - Total 0 Types 0/0/0/0/0/0/0/0/0 Lore% 0 Gallery% 2 Achievement% 2 Wizard Run 0 Options --------- Layout 1 ASCII 0 Keyboard 0 Movement Numpad Keybinds 0 Fullscreen 1 Font 32/SmallcapsGlow Map View 77x35 Zoom Use 2% Tactical HUD 0 Map Filters NONE Filters NONE Steam 1 RUN: 7ff2adeb-415a-4416-b9cc-87be54488f94